bitfinex-derivatives/quotes_BTCF0:USTF0_20250125
["timestamp","ask_amount","ask_price","bid_price","bid_amount"]
[1737846374215,0.45732921,105010.0,105000.0,0.39317493]
[1737846382223,0.45732921,105010.0,105000.0,0.39269493]
[1737846383222,0.09652921,105010.0,105000.0,0.39269493]
[1737846385820,0.09652921,105010.0,105000.0,0.75349493]
[1737846386127,0.09652921,105010.0,105000.0,0.39269493]
[1737846386518,0.09652921,105010.0,105000.0,0.75349493]
[1737846386723,0.09652921,105010.0,105000.0,0.39269493]
[1737846389129,0.09652921,105010.0,105000.0,0.75349493]
[1737846389725,0.09652921,105010.0,105000.0,0.77796204]
[1737846390026,0.06412921,105010.0,105000.0,0.77796204]
[1737846390830,0.06412921,105010.0,105000.0,0.8731956]
[1737846390831,0.00142921,105010.0,105000.0,0.8731956]
[1737846391132,0.48783939,105020.0,105010.0,0.152389]
[1737846391322,0.48783939,105020.0,105010.0,0.28343033]
[1737846391523,0.62988471,105020.0,105010.0,0.28343033]
[1737846392127,0.63088471,105020.0,105010.0,0.28343033]
[1737846394733,0.48883939,105020.0,105010.0,0.28343033]
[1737846399631,0.48883939,105020.0,105010.0,0.2434632]
[1737846400431,0.63088471,105020.0,105010.0,0.2434632]
[1737846401641,0.63088471,105020.0,105010.0,0.28458303]
[1737846402546,0.27008471,105020.0,105010.0,0.28458303]
[1737846402959,0.63088471,105020.0,105010.0,0.28458303]
[1737846403950,0.25677674,105020.0,105010.0,0.64538303]
[1737846405855,0.08659334,105020.0,105010.0,0.64538303]
[1737846414859,0.08659334,105020.0,105010.0,0.65970303]
[1737846434479,0.08659334,105020.0,105010.0,0.64538303]
[1737846434690,0.08659334,105020.0,105010.0,0.65970303]
[1737846435783,0.2002296,105020.0,105010.0,0.65970303]
[1737846437186,0.2002296,105020.0,105010.0,0.6185832]
[1737846439690,0.2002296,105020.0,105010.0,0.3287032]
[1737846440891,0.2002296,105020.0,105010.0,0.6895032]
[1737846441390,0.2002296,105020.0,105010.0,0.82584752]
[1737846441688,0.15737949,105020.0,105010.0,0.82584752]
[1737846442391,0.15737949,105020.0,105010.0,0.31840597]
[1737846442392,0.51817949,105020.0,105010.0,0.31840597]
[1737846442891,0.51817949,105020.0,105010.0,0.36978303]
[1737846447092,0.51817949,105020.0,105010.0,0.3286632]
[1737846449998,0.15737949,105020.0,105010.0,0.3286632]
[1737846450388,0.15737949,105020.0,105010.0,0.42388769]
[1737846451102,0.15737949,105020.0,105010.0,0.84978769]
[1737846451392,0.15737949,105020.0,105010.0,0.94232458]
[1737846451596,0.11453149,105020.0,105010.0,0.97512458]
[1737846454604,0.17633626,105030.0,105020.0,0.152374]
[1737846454898,0.17633626,105030.0,105020.0,0.69678509]
[1737846455704,0.17833626,105030.0,105020.0,0.69678509]
[1737846456995,0.11563626,105030.0,105020.0,0.65566526]
[1737846457501,0.002,105030.0,105020.0,0.65566526]
[1737846459297,0.002,105030.0,105020.0,0.66518067]
[1737846461004,0.0968,105030.0,105020.0,0.66518067]
[1737846462304,0.4576,105030.0,105020.0,0.17134961]
[1737846466105,0.4576,105030.0,105020.0,0.32372361]
[1737846466307,0.57123626,105030.0,105020.0,0.32372361]
[1737846472708,0.21043626,105030.0,105020.0,0.32372361]
[1737846473009,0.57123626,105030.0,105020.0,0.32372361]
[1737846475312,0.57123626,105030.0,105020.0,0.37514067]
[1737846476415,0.21043626,105030.0,105020.0,0.37514067]
[1737846478814,0.0968,105030.0,105020.0,0.37514067]
[1737846482618,0.0968,105030.0,105020.0,0.4162605]
[1737846491525,0.0658,105030.0,105020.0,0.4162605]
[1737846495027,0.002,105030.0,105020.0,0.37514067]
[1737846496822,0.002,105030.0,105020.0,0.32372361]
[1737846497215,0.002,105030.0,105020.0,0.04917255]
[1737846497526,0.54716,105030.0,105010.0,0.27414075]
[1737846497726,0.4239,105020.0,105010.0,0.31388315]
[1737846499328,0.4239,105020.0,105010.0,0.32317073]
[1737846500621,0.4249,105020.0,105010.0,0.32317073]
[1737846502120,0.4249,105020.0,105010.0,0.36429056]
[1737846503226,0.001,105020.0,105010.0,0.32317073]
[1737846503428,0.001,105020.0,105010.0,0.36429056]
[1737846503732,0.3618,105020.0,105010.0,0.36429056]
[1737846503929,0.001,105020.0,105010.0,0.36429056]
[1737846505226,0.3618,105020.0,105010.0,0.36429056]
[1737846505930,0.3618,105020.0,105010.0,0.32317073]
[1737846506326,0.3618,105020.0,105010.0,0.36429056]
[1737846507535,0.3618,105020.0,105010.0,0.32317073]
[1737846509227,0.3929,105020.0,105010.0,0.32317073]
[1737846509537,0.4231,105020.0,105010.0,0.17074973]
[1737846510033,0.4231,105020.0,105010.0,0.32313873]
[1737846510935,0.4231,105020.0,105010.0,0.32317873]
[1737846512533,0.4231,105020.0,105010.0,0.17078973]
[1737846514530,0.4231,105020.0,105010.0,0.17074973]
[1737846518036,0.47451706,105020.0,105010.0,0.04917267]
[1737846518242,0.152393,105010.0,104990.0,0.20392589]
[1737846518542,0.4558,105000.0,104990.0,0.25245216]
[1737846518845,0.4558,105000.0,104990.0,0.32253216]
[1737846519437,0.4558,105000.0,104990.0,0.32353216]
[1737846519637,0.4558,105000.0,104990.0,0.32453216]
[1737846520040,0.4558,105000.0,104990.0,0.32353216]
[1737846520342,0.4558,105000.0,104990.0,0.32853216]
[1737846520928,0.4558,105000.0,104990.0,0.17611616]
[1737846521442,0.4558,105000.0,104990.0,0.17607616]
[1737846522539,0.4558,105000.0,104990.0,0.17603616]
[1737846525540,0.4558,105000.0,104990.0,0.10603616]
[1737846525736,0.608203,105000.0,104990.0,0.17607616]
[1737846526129,0.608203,105000.0,104990.0,0.13671127]
[1737846529243,0.608203,105000.0,104990.0,0.13663127]
[1737846530841,0.608203,105000.0,104990.0,0.08521421]
[1737846531042,0.65962006,105000.0,104990.0,0.08521421]
[1737846531544,1.02042006,105000.0,104990.0,0.00609283]
[1737846533444,1.13405632,105000.0,104990.0,0.00609283]
[1737846537552,1.14569836,105000.0,104990.0,0.00609283]
[1737846539947,1.0320621,105000.0,104990.0,0.00609283]
[1737846543846,1.14569836,105000.0,104990.0,0.00609283]
[1737846548155,1.08263926,105000.0,104990.0,0.15851083]
[1737846548347,1.13405632,105000.0,104990.0,0.15851083]
[1737846548749,1.08263926,105000.0,104990.0,0.15851083]
[1737846549060,1.13405632,105000.0,104990.0,0.15851083]
[1737846549651,1.16246538,105000.0,104990.0,0.15851083]
[1737846551053,1.11104832,105000.0,104990.0,0.15851083]
[1737846552053,1.01604832,105000.0,104990.0,0.20992789]
[1737846552255,0.86364532,105000.0,104990.0,0.24928645]
[1737846552456,0.86364532,105000.0,104990.0,0.34228645]
[1737846552959,0.7216,105000.0,104990.0,0.34228645]
[1737846554855,0.7216,105000.0,104990.0,0.35660645]
[1737846555457,0.7216,105000.0,104990.0,0.42628645]
[1737846558356,0.7216,105000.0,104990.0,0.41196645]
[1737846562358,0.7216,105000.0,104990.0,0.45185533]
[1737846563454,0.7216,105000.0,104990.0,0.41196645]
[1737846563861,0.7216,105000.0,104990.0,0.45185533]
[1737846565967,0.47488121,105010.0,105000.0,0.152403]
[1737846566156,0.47488121,105010.0,105000.0,0.25523712]
[1737846566466,0.47488121,105010.0,105000.0,0.29460819]
[1737846566762,0.47488121,105010.0,105000.0,0.25523712]
[1737846567766,0.47488121,105010.0,105000.0,0.20382006]
[1737846568160,0.36094269,105010.0,105000.0,0.20482006]
[1737846568555,0.36094269,105010.0,105000.0,0.24418206]
[1737846568753,0.36094269,105010.0,105000.0,0.24518206]
[1737846570575,0.36094269,105010.0,105000.0,0.29659912]
[1737846570863,0.36094269,105010.0,105000.0,0.30759493]
[1737846572168,0.44634624,105010.0,105000.0,0.30759493]
[1737846573571,0.08554624,105010.0,105000.0,0.40282849]
[1737846574765,0.08554624,105010.0,105000.0,0.41714849]
[1737846575071,0.00014269,105010.0,105000.0,0.41714849]
[1737846580070,0.00014269,105010.0,105000.0,0.41614849]
[1737846580275,0.00014269,105010.0,105000.0,0.42114849]
[1737846594492,0.00014269,105010.0,105000.0,0.40682849]
[1737846594684,0.00014269,105010.0,105000.0,0.42114849]
[1737846599893,0.00014269,105010.0,105000.0,0.46103737]
[1737846601191,0.00014269,105010.0,105000.0,0.42114849]
[1737846602798,0.08554624,105010.0,105000.0,0.42114849]
[1737846609503,0.08554624,105010.0,105000.0,0.46107426]
[1737846610193,0.08554624,105010.0,105000.0,0.82187426]
[1737846610395,0.08554624,105010.0,105000.0,0.46107426]
[1737846610793,0.08554624,105010.0,105000.0,0.4096572]
[1737846610997,0.18144624,105010.0,105000.0,0.4096572]
[1737846612393,0.18144624,105010.0,105000.0,0.46107426]
[1737846612595,0.18144624,105010.0,105000.0,0.42114849]
[1737846614297,0.18144624,105010.0,105000.0,0.36973143]
[1737846614597,0.54224624,105010.0,105000.0,0.12555781]
[1737846615199,0.7460523,105010.0,105000.0,0.05635781]
[1737846615399,0.7460523,105010.0,105000.0,0.12555781]
[1737846619109,0.7460523,105010.0,105000.0,0.114562]
[1737846619508,0.7460523,105010.0,105000.0,0.0752]
[1737846620006,0.92774353,105010.0,105000.0,0.0752]
[1737846623407,0.92774353,105010.0,105000.0,0.006]
[1737846626817,0.78569821,105010.0,105000.0,0.006]
[1737846627116,0.77458727,105010.0,105000.0,0.006]
[1737846627320,0.72317021,105010.0,105000.0,0.20982006]
[1737846627713,0.60923169,105010.0,105000.0,0.20982006]
[1737846627909,0.45684269,105010.0,105000.0,0.20982006]
[1737846628110,0.45684269,105010.0,105000.0,0.26123712]
[1737846628309,0.42594269,105010.0,105000.0,0.24923858]
[1737846630212,0.51134894,105010.0,105000.0,0.24923858]
[1737846631717,0.51134894,105010.0,105000.0,0.31843858]
[1737846631919,0.51134894,105010.0,105000.0,0.24923858]
[1737846632114,0.51134894,105010.0,105000.0,0.31843858]
[1737846634423,0.42594269,105010.0,105000.0,0.31843858]
[1737846634824,0.42594269,105010.0,105000.0,0.33275858]
[1737846636423,0.57833169,105010.0,105000.0,0.11461852]
[1737846636616,0.57833169,105010.0,105000.0,0.16603558]
[1737846639231,0.57833169,105010.0,105000.0,0.31843858]
[1737846640125,0.66373794,105010.0,105000.0,0.26702152]
[1737846640525,0.66373794,105010.0,105000.0,0.31843858]
[1737846640725,0.66373794,105010.0,105000.0,0.26702152]
[1737846641523,0.715155,105010.0,105000.0,0.11461852]
[1737846641832,0.715155,105010.0,105000.0,0.0752]
[1737846642031,0.715155,105010.0,105000.0,0.006]
[1737846642626,0.715155,105010.0,105000.0,0.0752]
[1737846642931,0.82903,105010.0,105000.0,0.0752]
[1737846646334,0.74362375,105010.0,105000.0,0.0752]
[1737846646536,0.74362375,105010.0,105000.0,0.006]
[1737846649940,0.74362375,105010.0,105000.0,0.04546838]
[1737846651039,0.75379303,105010.0,105000.0,0.04546838]
[1737846653341,0.89613679,105010.0,105000.0,0.04546838]
[1737846655539,0.84471973,105010.0,105000.0,0.04546838]
[1737846656340,0.83455045,105010.0,105000.0,0.04546838]
[1737846656534,0.83455045,105010.0,105000.0,0.24928844]
[1737846658743,0.83455045,105010.0,105000.0,0.19787138]
[1737846659643,0.83455045,105010.0,105000.0,0.26707138]
[1737846660334,0.83455045,105010.0,105000.0,0.227603]
[1737846661045,0.88596751,105010.0,105000.0,0.227603]
[1737846661639,0.88596751,105010.0,105000.0,0.0752]
[1737846664147,0.74362375,105010.0,105000.0,0.0752]
[1737846667450,0.74362375,105010.0,105000.0,0.11467859]
[1737846669850,0.74362375,105010.0,105000.0,0.04547859]
[1737846670249,0.74362375,105010.0,105000.0,0.006]
[1737846671052,0.94290502,105010.0,105000.0,0.006]
[1737846672052,0.79051602,105010.0,104990.0,0.23258659]
[1737846672243,0.94290502,105010.0,105000.0,0.001]
[1737846672443,1.30370502,105010.0,105000.0,0.001]
[1737846673344,0.152403,105000.0,104990.0,0.23358659]
[1737846673546,0.513203,105000.0,104990.0,0.27307302]
[1737846675354,0.513203,105000.0,104990.0,0.32349008]
[1737846675556,0.513203,105000.0,104990.0,0.32449008]
[1737846676055,0.513203,105000.0,104990.0,0.32849008]
[1737846676654,0.76992204,105000.0,104990.0,0.32849008]
[1737846677258,0.76992204,105000.0,104990.0,0.10687808]
[1737846677755,0.76992204,105000.0,104990.0,0.05546102]
[1737846680853,0.76992204,105000.0,104990.0,0.20787902]
[1737846686964,0.62730035,105000.0,104990.0,0.20787902]
[1737846692862,0.76992204,105000.0,104990.0,0.20787902]
[1737846695470,0.62730035,105000.0,104990.0,0.20787902]
[1737846698570,0.76992204,105000.0,104990.0,0.20787902]
[1737846706488,0.80072204,105000.0,104990.0,0.20787902]
[1737846707389,0.64831904,105000.0,104990.0,0.20787902]
[1737846707583,0.61751904,105000.0,104990.0,0.20787902]
[1737846708788,0.61751904,105000.0,104990.0,0.24778156]
[1737846710790,0.61751904,105000.0,104990.0,0.29919862]
[1737846711580,0.61751904,105000.0,104990.0,0.36839862]
[1737846711889,0.61751904,105000.0,104990.0,0.31698156]
[1737846715089,0.61751904,105000.0,104990.0,0.27707902]
[1737846715484,0.61751904,105000.0,104990.0,0.32849608]
[1737846716790,0.61751904,105000.0,104990.0,0.39019608]
[1737846716993,0.61751904,105000.0,104990.0,0.42179608]
[1737846717591,0.47489735,105000.0,104990.0,0.42179608]
[1737846718793,0.47489735,105000.0,104990.0,0.32849608]
[1737846719496,0.50649735,105000.0,104990.0,0.31698156]
[1737846719695,0.65890035,105000.0,104990.0,0.24778156]
[1737846719896,0.65890035,105000.0,104990.0,0.31698156]
[1737846721691,0.65890035,105000.0,104990.0,0.27707902]
[1737846725495,0.65890035,105000.0,104990.0,0.05546102]
[1737846725794,0.152418,104990.0,104980.0,0.00014269]
[1737846725995,0.152418,104990.0,104980.0,0.06934269]
[1737846725996,0.62663506,104990.0,104980.0,0.06934269]
[1737846726298,0.62663506,104990.0,104980.0,0.10885215]
[1737846726795,0.62672789,104990.0,104980.0,0.10885215]
[1737846726995,0.62672789,104990.0,104980.0,0.11085215]
[1737846727400,0.62672789,104990.0,104980.0,0.04865215]
[1737846727897,0.62672789,104990.0,104980.0,0.00914269]
[1737846729303,0.62672789,104990.0,104980.0,0.00714269]
[1737846729504,0.62672789,104990.0,104980.0,0.00014269]
[1737846730206,0.7975404,104990.0,104980.0,0.00014269]
[1737846732898,0.7791523,104990.0,104980.0,0.00014269]
[1737846737914,0.89289923,104990.0,104980.0,0.00014269]
[1737846753216,0.7791523,104990.0,104980.0,0.00014269]
[1737846759520,0.80765143,104990.0,104980.0,0.00014269]
[1737846765223,1.16845143,104990.0,104980.0,0.00014269]
[1737846765722,0.99763892,104990.0,104980.0,0.00014269]
[1737846773829,1.1688592,104990.0,104980.0,0.00014269]
[1737846793755,0.99763892,104990.0,104980.0,0.00014269]
[1737846808067,1.04896315,104990.0,104980.0,6.9e-07]
[1737846808264,0.152461,104960.0,104950.0,0.0644]
[1737846808567,0.97698795,104960.0,104950.0,0.0644]
[1737846808868,0.92557089,104960.0,104950.0,0.0644]
[1737846809167,0.97698795,104960.0,104950.0,0.0644]
[1737846809468,0.92657089,104960.0,104950.0,0.0724]
[1737846810372,0.92657089,104960.0,104950.0,0.0814]
[1737846811767,1.04048343,104960.0,104950.0,0.0814]
[1737846813264,0.99085655,104960.0,104910.0,0.50142961]
[1737846813563,0.77301706,104920.0,104910.0,0.37079104]
[1737846813763,0.7216,104920.0,104910.0,0.35647104]
[1737846813975,0.7216,104920.0,104910.0,0.22306012]
[1737846813976,0.92553606,104920.0,104910.0,0.22306012]
[1737846814161,0.92553606,104920.0,104910.0,0.19367002]
[1737846814360,0.92562211,104920.0,104910.0,0.20267002]
[1737846814563,0.92562211,104920.0,104910.0,0.21167002]
[1737846814966,0.92562211,104920.0,104910.0,0.20267002]
[1737846815275,0.92562211,104920.0,104910.0,0.21167002]
[1737846815276,0.92662211,104920.0,104910.0,0.21167002]
[1737846822569,0.77410311,104920.0,104910.0,0.21167002]
[1737846822887,0.72268605,104920.0,104910.0,0.26308708]
[1737846823267,0.72268605,104920.0,104910.0,0.35840233]
[1737846823468,0.72268605,104920.0,104910.0,0.42760233]
[1737846823671,0.72268605,104920.0,104910.0,0.35840233]
[1737846823872,0.00108605,104920.0,104910.0,1.19374589]
[1737846824178,0.58314269,104930.0,104920.0,0.152519]
[1737846824378,0.58314269,104930.0,104920.0,0.23633606]
[1737846824683,0.36094269,104930.0,104920.0,0.23633606]
[1737846824878,0.36094269,104930.0,104920.0,0.33165131]
[1737846825075,0.3610183,104930.0,104920.0,0.33165131]
[1737846825781,0.3620183,104930.0,104920.0,0.34065131]
[1737846825985,0.3620183,104930.0,104920.0,0.39206837]
[1737846826886,0.3630183,104930.0,104920.0,0.39806837]
[1737846827479,0.3630183,104930.0,104920.0,0.42856837]
[1737846832281,0.92774036,104930.0,104920.0,0.167519]
[1737846832483,0.9725233,104930.0,104920.0,0.28813606]
[1737846834480,0.9725233,104930.0,104920.0,0.21893606]
[1737846834682,0.9725233,104930.0,104920.0,0.28813606]
[1737846843098,1.05766635,104930.0,104920.0,0.28813606]
[1737846849092,1.05766635,104930.0,104920.0,0.32725783]
[1737846855107,1.17157889,104930.0,104920.0,0.32725783]
[1737846858119,1.17157889,104930.0,104920.0,0.47398106]
[1737846858120,0.92287389,104930.0,104920.0,0.47398106]
[1737846858311,0.92287389,104930.0,104920.0,0.60951009]
[1737846860706,0.92287389,104930.0,104920.0,0.56968106]
[1737846861622,0.7238183,104930.0,104920.0,0.56968106]
[1737846863909,0.3630183,104930.0,104920.0,0.62109812]
[1737846864119,1e-08,104930.0,104920.0,1.58749255]
[1737846864619,0.19905559,104940.0,104930.0,0.152505]
[1737846864923,0.19905559,104940.0,104930.0,0.69508992]
[1737846865320,0.19905559,104940.0,104930.0,0.790387]
[1737846865920,0.19905559,104940.0,104930.0,0.796387]
[1737846866312,0.19905559,104940.0,104930.0,0.798387]
[1737846868426,0.19905559,104940.0,104930.0,0.75855797]
[1737846868822,0.00014269,104950.0,104930.0,0.60605297]
[1737846869130,0.00014269,104950.0,104940.0,0.31572412]
[1737846869323,0.00014269,104950.0,104940.0,0.35484589]
[1737846869717,0.00014269,104950.0,104940.0,0.45013843]
[1737846871526,0.00014269,104950.0,104940.0,0.45413843]
[1737846875136,0.36094269,104950.0,104940.0,0.29844589]
[1737846875323,0.39094269,104950.0,104940.0,0.29844589]
[1737846875726,0.39094269,104950.0,104940.0,0.30803241]
[1737846876130,0.39094269,104950.0,104940.0,0.32235241]
[1737846876333,0.03014269,104950.0,104940.0,0.40332041]
[1737846876630,0.00014269,104950.0,104940.0,0.90332041]
[1737846876836,0.00014269,104950.0,104940.0,0.96592041]
[1737846877137,0.36223001,104960.0,104950.0,0.152476]
[1737846877434,0.36223001,104960.0,104950.0,0.32451012]
[1737846877836,0.36223001,104960.0,104950.0,0.41979812]
[1737846885040,0.36223001,104960.0,104950.0,0.45881549]
[1737846885235,0.00143001,104960.0,104950.0,0.45881549]
[1737846885540,0.45544269,104970.0,104960.0,0.152461]
[1737846885737,0.45544269,104970.0,104960.0,0.25529512]
[1737846886639,0.45844269,104970.0,104960.0,0.35056497]
[1737846887239,0.46044269,104970.0,104960.0,0.35056497]
[1737846893044,0.36594269,104970.0,104960.0,0.5142685]
[1737846893242,0.00514269,104970.0,104960.0,1.41411094]
[1737846893434,0.00514269,104970.0,104960.0,1.45393997]
[1737846894151,0.09028574,104970.0,104960.0,1.45393997]
[1737846894743,0.09028574,104970.0,104960.0,1.46825997]
[1737846895450,0.09028574,104970.0,104960.0,1.42843094]
[1737846896546,0.09028574,104970.0,104960.0,1.46825997]
[1737846897245,0.09028574,104970.0,104960.0,1.01621388]
[1737846897545,0.09028574,104970.0,104960.0,1.37701388]
[1737846898047,0.09028574,104970.0,104960.0,0.91379417]
[1737846898246,0.09934269,104970.0,104960.0,0.91379417]
[1737846899444,0.46014269,104970.0,104960.0,0.41379417]
[1737846899749,0.46014269,104970.0,104960.0,0.38768432]
[1737846900145,0.46014269,104970.0,104960.0,0.34864188]
[1737846902339,0.61258969,104970.0,104960.0,0.34864188]
[1737846902540,0.61258969,104970.0,104960.0,0.38771354]
[1737846904045,0.46014269,104970.0,104960.0,0.38771354]
[1737846906449,0.46014269,104970.0,104960.0,0.42754257]
[1737846908547,0.46014269,104970.0,104960.0,0.37612551]
[1737846909053,0.46014269,104970.0,104960.0,0.33629648]
[1737846909852,0.61258969,104970.0,104960.0,0.03907166]
[1737846910042,0.61258969,104970.0,104960.0,0.06916]
[1737846910043,0.66400675,104970.0,104960.0,0.06916]
[1737846910247,0.61258969,104970.0,104960.0,0.06916]
[1737846911357,0.61258969,104970.0,104960.0,0.12057706]
[1737846912757,0.152461,104960.0,104950.0,0.06085058]
[1737846913057,0.513261,104960.0,104950.0,0.09995355]
[1737846913258,0.513261,104960.0,104950.0,0.16911355]
[1737846913554,0.513261,104960.0,104950.0,0.13001058]
[1737846913952,0.513261,104960.0,104950.0,0.32158925]
[1737846914555,0.513261,104960.0,104950.0,0.25242925]
[1737846914753,0.513261,104960.0,104950.0,0.32158925]
[1737846916548,0.59840405,104960.0,104950.0,0.32158925]
[1737846919463,0.59840405,104960.0,104950.0,0.25242925]
[1737846919656,0.59840405,104960.0,104950.0,0.32158925]
[1737846920250,0.513261,104960.0,104950.0,0.15967973]
[1737846920762,0.513261,104960.0,104950.0,0.12057706]
[1737846921362,0.513261,104960.0,104950.0,0.15966752]
[1737846921762,0.513261,104960.0,104950.0,0.12057706]
[1737846922658,0.513261,104960.0,104950.0,0.27305306]
[1737846923463,0.59840405,104960.0,104950.0,0.27305306]
[1737846925969,0.44594305,104960.0,104950.0,0.41974904]
[1737846926170,0.44594305,104960.0,104950.0,0.55242412]
[1737846926467,0.44594305,104960.0,104950.0,0.59222605]
[1737846927060,0.08514305,104960.0,104950.0,0.95302605]
[1737846927261,0.08514305,104960.0,104950.0,1.06041274]
[1737846928669,0.47485523,104970.0,104960.0,0.152461]
[1737846928964,0.47485523,104970.0,104960.0,0.33417213]
[1737846929165,0.47485523,104970.0,104960.0,0.44328972]
[1737846929366,0.47485523,104970.0,104960.0,0.53856864]
[1737846929670,0.36094269,104970.0,104960.0,0.5899857]
[1737846929873,0.36294269,104970.0,104960.0,0.5899857]
[1737846930063,0.36294269,104970.0,104960.0,0.53856864]
[1737846930265,0.36294269,104970.0,104960.0,0.49876671]
[1737846930669,0.36594269,104970.0,104960.0,0.53856864]
[1737846930869,0.00514269,104970.0,104960.0,0.9507857]
[1737846931559,0.63041306,104990.0,104960.0,0.7983247]
[1737846931765,0.61710322,104990.0,104980.0,0.23080857]
[1737846932070,0.61710322,104990.0,104980.0,0.33904365]
[1737846932269,0.61710322,104990.0,104980.0,0.37884558]
[1737846932663,0.62110322,104990.0,104980.0,0.33904365]
[1737846932865,0.98190322,104990.0,104980.0,0.33904365]
[1737846933265,1.01360322,104990.0,104980.0,0.33904365]
[1737846933466,1.04590322,104990.0,104980.0,0.33904365]
[1737846933767,1.20432122,104990.0,104980.0,0.18661165]
[1737846933959,0.98790322,104990.0,104980.0,0.29996857]
[1737846934166,0.62710322,104990.0,104980.0,0.29996857]
[1737846934466,0.3708,104990.0,104980.0,0.34002452]
[1737846934865,0.3708,104990.0,104980.0,0.35434452]
[1737846937472,0.3708,104990.0,104980.0,0.31528857]
[1737846938167,0.3708,104990.0,104980.0,0.41054027]
[1737846939867,0.3708,104990.0,104980.0,0.44954989]
[1737846940071,0.3708,104990.0,104980.0,0.94954989]
[1737846942571,0.3708,104990.0,104980.0,0.91054027]
[1737846949282,0.3708,104990.0,104980.0,0.80096857]
[1737846949488,0.3708,104990.0,104980.0,0.30096857]
[1737846949780,0.7316,104990.0,104980.0,0.30096857]
[1737846953288,0.884018,104990.0,104980.0,0.30096857]
[1737846953483,0.7316,104990.0,104980.0,0.30096857]
[1737846953685,0.7316,104990.0,104980.0,0.3254738]
[1737846957287,0.7316,104990.0,104980.0,0.36527573]
[1737846957483,0.7316,104990.0,104980.0,0.3254738]
[1737846957692,0.7316,104990.0,104980.0,0.36449996]
[1737846958282,0.7316,104990.0,104980.0,0.40430189]
[1737846959384,0.7316,104990.0,104980.0,0.36449996]
[1737846960192,0.7316,104990.0,104980.0,0.40430189]
[1737846960489,0.884018,104990.0,104980.0,0.16062706]
[1737846960686,0.884018,104990.0,104980.0,0.1216009]
[1737846962488,0.884018,104990.0,104980.0,0.16071316]
[1737846962892,0.99793054,104990.0,104980.0,0.16071316]
[1737846963192,1.04937144,104990.0,104980.0,0.04011226]
[1737846963495,1.04937144,104990.0,104980.0,0.001]
[1737846966499,1.07784958,104990.0,104980.0,0.001]
[1737846973001,1.19176182,104990.0,104980.0,0.001]
[1737846973204,0.152432,104980.0,104970.0,0.00014269]
[1737846973399,0.6607729,104980.0,104970.0,0.00014269]
[1737846973902,0.609332,104980.0,104970.0,0.05158359]
[1737846974405,0.611332,104980.0,104970.0,0.05158359]
[1737846974600,0.617332,104980.0,104970.0,0.05158359]
[1737846976601,0.617332,104980.0,104970.0,0.00014269]
[1737846976800,0.6687729,104980.0,104970.0,0.00014269]
[1737846981103,0.7202138,104980.0,104970.0,0.00014269]
[1737846981304,0.152461,104960.0,104950.0,0.733714]
[1737846981604,0.513261,104960.0,104950.0,0.28249499]
[1737846981808,0.575361,104960.0,104950.0,0.28249499]
[1737846982510,0.575361,104960.0,104950.0,0.21333499]
[1737846982705,0.575361,104960.0,104950.0,0.28249499]
[1737846983711,0.575361,104960.0,104950.0,0.21333499]
[1737846983911,0.575361,104960.0,104950.0,0.28249499]
[1737846988005,0.3608,104960.0,104950.0,0.28249499]
[1737846988206,0.3608,104960.0,104950.0,0.31569499]
[1737846992516,0.3608,104960.0,104950.0,0.35476748]
[1737846995209,0.3608,104960.0,104950.0,0.40620838]
[1737846995412,0.3608,104960.0,104950.0,0.54130573]
[1737846998816,0.3608,104960.0,104950.0,0.48986483]
[1737846999516,0.3608,104960.0,104950.0,0.42070483]
[1737846999715,0.3608,104960.0,104950.0,0.48986483]
[1737847000104,0.3608,104960.0,104950.0,0.4500464]
[1737847002708,0.3608,104960.0,104950.0,0.25240748]
[1737847002914,0.3608,104960.0,104950.0,0.32156748]
[1737847003117,0.4537,104960.0,104950.0,0.32156748]
[1737847005820,0.391,104960.0,104950.0,0.32156748]
[1737847006022,0.47485493,104970.0,104950.0,0.3158133]
[1737847006213,0.47485493,104970.0,104960.0,0.2553428]
[1737847006414,0.47485493,104970.0,104960.0,0.29441529]
[1737847007320,0.47585493,104970.0,104960.0,0.29441529]
[1737847007511,0.47885493,104970.0,104960.0,0.29441529]
[1737847007825,0.14239068,104980.0,104960.0,1.2503486]
[1737847008129,0.14239068,104980.0,104970.0,0.3541288]
[1737847008415,0.14239068,104980.0,104970.0,0.39320129]
[1737847008813,0.14239068,104980.0,104970.0,0.48846206]
[1737847009013,0.14839068,104980.0,104970.0,0.48846206]
[1737847009324,0.006,104980.0,104970.0,0.48846206]
[1737847009613,0.50462015,104990.0,104980.0,0.152432]
[1737847009822,0.50462015,104990.0,104980.0,0.29993697]
[1737847010213,0.50462015,104990.0,104980.0,0.33900946]
[1737847011621,0.50762015,104990.0,104980.0,0.33900946]
[1737847012122,0.50862015,104990.0,104980.0,0.34000946]
[1737847013018,0.66103815,104990.0,104980.0,0.10919249]
[1737847013218,0.66103815,104990.0,104980.0,0.07012]
[1737847013417,0.51864747,104990.0,104980.0,0.07012]
[1737847016024,0.59703244,104990.0,104980.0,0.222552]
[1737847016426,0.51864747,104990.0,104980.0,0.222552]
[1737847018722,0.59703244,104990.0,104980.0,0.001]
[1737847020721,0.73942312,104990.0,104980.0,0.001]
[1737847022023,0.66103815,104990.0,104980.0,0.001]
[1737847023530,0.73942312,104990.0,104980.0,0.001]
[1737847029435,0.152432,104980.0,104970.0,0.225164]
[1737847029625,0.65790273,104980.0,104970.0,0.225164]
[1737847029829,0.70937346,104980.0,104970.0,0.07272]
[1737847030039,0.152447,104970.0,104960.0,0.15259969]
[1737847030233,0.56471773,104970.0,104960.0,0.00014269]
[1737847031338,0.56871773,104970.0,104960.0,0.00014269]
[1737847031743,0.517247,104970.0,104960.0,0.00014269]
[1737847034442,0.52683099,104970.0,104960.0,0.00014269]
[1737847037544,0.60527593,104970.0,104960.0,0.00014269]
[1737847038339,0.517247,104970.0,104960.0,0.00014269]
[1737847038544,0.517247,104970.0,104960.0,0.15260369]
[1737847043849,0.59569194,104970.0,104960.0,0.15260369]
[1737847047449,0.517247,104970.0,104960.0,0.15260369]
[1737847052352,0.517247,104970.0,104960.0,0.23104863]
[1737847053644,0.517247,104970.0,104960.0,0.20406859]
[1737847054255,0.517247,104970.0,104960.0,0.25553349]
[1737847054444,0.3648,104970.0,104960.0,0.25553349]
[1737847054644,0.3648,104970.0,104960.0,0.29464297]
[1737847054849,0.3648,104970.0,104960.0,0.25553349]
[1737847055149,0.3648,104970.0,104960.0,0.29464126]
[1737847055860,0.45020268,104970.0,104960.0,0.29464126]
[1737847058761,0.45020268,104970.0,104960.0,0.36376126]
[1737847061363,0.45020268,104970.0,104960.0,0.51049601]
[1737847061657,0.08940268,104970.0,104960.0,0.87129601]
[1737847061857,0.08940268,104970.0,104960.0,0.81983111]
[1737847064858,0.004,104970.0,104960.0,0.81983111]
[1737847065764,0.004,104970.0,104960.0,0.92057347]
[1737847074775,0.004,104970.0,104960.0,0.93489347]